Workbook

Sheet tips
A1: TIPS TEMPLAT
A2: Apakah ada cara yang mudah untuk berpindah antara detail pengeluaran bulanan dan lembar ringkasan Tren Pengeluaran ?
A3: Untuk menavigasi dengan cepat ke pengeluaran bulan tertentu, klik tautan navigasi terkait di atas bagan, misalnya tautan navigasi Jan di B2. Lalu, untuk kembali ke lembar kerja Tren Pengeluaran, klik tautan navigasi Ringkasan di D1.
A4: Untuk kembali ke lembar kerja tips ini, dalam lembar kerja ringkasan, pilih N2. Dari semua lembar kerja bulan, pilih E1.
A5: Bagaimana cara menambahkan tipe Pengeluaran baru ke Ringkasan Pengeluaran atau pengeluaran bulanan baru?
A6: Ringkasan Pengeluaran di bawah bagan dan detail pengeluaran untuk setiap bulan merupakan tabel Excel. Untuk menambahkan baris baru ke tabel Excel apa pun, lakukan salah satu hal berikut:
A7: =ROW(A1)&". Jika tabel tidak memiliki baris Total, mulailah mengetik di bawah tabel dan tabel akan meluas secara otomatis saat Anda menekan Enter atau tombol Tab." -> 1. Jika tabel tidak memiliki baris Total, mulailah mengetik di bawah tabel dan tabel akan meluas secara otomatis saat Anda menekan Enter atau tombol Tab.
A8: =ROW(A2)&". Letakkan penunjuk sel dalam sel terakhir di atas baris Total, seperti total untuk pengeluaran terakhir, lalu tekan tombol Tab." -> 2. Letakkan penunjuk sel dalam sel terakhir di atas baris Total, seperti total untuk pengeluaran terakhir, lalu tekan tombol Tab.
A9: =ROW(A3)&". Klik kanan dalam tabel, dan pada menu pop-up, arahkan ke Sisipkan, lalu klik Baris Tabel Atas atau Tabel Baris Bawah." -> 3. Klik kanan dalam tabel, dan pada menu pop-up, arahkan ke Sisipkan, lalu klik Baris Tabel Atas atau Tabel Baris Bawah.
A10: =ROW(A4)&". Di sudut kanan bawah tabel, letakkan mouse pada gagang pengatur ukuran tabel dan seret ke bawah untuk menambah jumlah baris tabel yang tersedia." -> 4. Di sudut kanan bawah tabel, letakkan mouse pada gagang pengatur ukuran tabel dan seret ke bawah untuk menambah jumlah baris tabel yang tersedia.
A11: Masukkan pengeluaran dalam lembar kerja ringkasan dalam tabel RingkasanPengeluaran di kolom Pengeluaran.
A12: Tambahkan jumlah pengeluaran untuk setiap tipe pengeluaran dalam lembar kerja bulan yang berlaku untuk pengeluaran tersebut.
A13: contohnya: "Pengeluaran 1" muncul dalam bulan Jan hingga Jun dan Des.
A14: =ROW(A1)&". Pengeluaran 1 dimasukkan di lembar kerja ringkasan di bawah Pengeluaran dalam tabel RingkasanPengeluaran (seperti judul untuk tipe pengeluaran)" -> 1. Pengeluaran 1 dimasukkan di lembar kerja ringkasan di bawah Pengeluaran dalam tabel RingkasanPengeluaran (seperti judul untuk tipe pengeluaran)
A15: =ROW(A2)&". Untuk setiap bulannya pengeluaran tersebut terjadi, masukkan nilai untuk pengeluaran dalam lembar kerja bulan yang terkait." -> 2. Untuk setiap bulannya pengeluaran tersebut terjadi, masukkan nilai untuk pengeluaran dalam lembar kerja bulan yang terkait.
A16: =ROW(A3)&". Tipe pengeluaran dari lembar kerja RingkasanPengeluaran akan membuat daftar kategori untuk kolom Kategori dalam lembar kerja setiap bulan." -> 3. Tipe pengeluaran dari lembar kerja RingkasanPengeluaran akan membuat daftar kategori untuk kolom Kategori dalam lembar kerja setiap bulan.
A17: =ROW(A4)&". Gunakan daftar kategori di kolom Kategori untuk memilih tipe pengeluaran yang terkait bagi jumlah pengeluaran yang dimasukkan" -> 4. Gunakan daftar kategori di kolom Kategori untuk memilih tipe pengeluaran yang terkait bagi jumlah pengeluaran yang dimasukkan
A18: =ROW(A5)&". Untuk menambahkan pengeluaran baru untuk setiap bulan, tambahkan baris baru ke tabel RingkasanPengeluaran di lembar kerja ringkasan, lalu masukkan detail pengeluaran yang terkait di lembar kerja bulan yang berkaitan." -> 5. Untuk menambahkan pengeluaran baru untuk setiap bulan, tambahkan baris baru ke tabel RingkasanPengeluaran di lembar kerja ringkasan, lalu masukkan detail pengeluaran yang terkait di lembar kerja bulan yang berkaitan.

Sheet ringkasan
A1: TREN PENGELUARAN
B2: Jan | C2: Feb | D2: Mar | E2: Apr | F2: Mei | G2: Jun | H2: Jul | I2: Ags | J2: Sep | K2: Okt | L2: Nov | M2: Des | N2: Tips
A4: Pengeluaran | B4: Jan | C4: Feb | D4: Mar | E4: Apr | F4: Mei | G4: Jun | H4: Jul | I4: Ags | J4: Sep | K4: Okt | L4: Nov | M4: Des | N4: Total | O4: Tren
A5: Pengeluaran 1 | B5: =SUMIFS(PengeluaranJan[Jumlah],PengeluaranJan[Kategori],RingkasanPengeluaran[Pengeluaran]) -> 33,000.00 | C5: =SUMIFS(PengeluaranFeb[Jumlah],PengeluaranFeb[Kategori],RingkasanPengeluaran[Pengeluaran]) -> 375,000.00 | D5: =SUMIFS(PengeluaranMar[Jumlah],PengeluaranMar[Kategori],RingkasanPengeluaran[Pengeluaran]) -> 33,000.00 | E5: =SUMIFS(PengeluaranApr[Jumlah],PengeluaranApr[Kategori],RingkasanPengeluaran[Pengeluaran]) -> 45,000.00 | F5: =SUMIFS(PengeluaranMei[Jumlah],PengeluaranMei[Kategori],RingkasanPengeluaran[Pengeluaran]) -> 375,000.00 | G5: =SUMIFS(PengeluaranJun[Jumlah],PengeluaranJun[Kategori],RingkasanPengeluaran[Pengeluaran]) -> 201,000.00 | H5: =SUMIFS(PengeluaranJul[Jumlah],PengeluaranJul[Kategori],RingkasanPengeluaran[Pengeluaran]) -> 0.00 | I5: =SUMIFS(PengeluaranAgs[Jumlah],PengeluaranAgs[Kategori],RingkasanPengeluaran[Pengeluaran]) -> 0.00 | J5: =SUMIFS(PengeluaranSep[Jumlah],PengeluaranSep[Kategori],RingkasanPengeluaran[Pengeluaran]) -> 0.00 | K5: =SUMIFS(PengeluaranOkt[Jumlah],PengeluaranOkt[Kategori],RingkasanPengeluaran[Pengeluaran]) -> 0.00 | L5: =SUMIFS(PengeluaranNov[Jumlah],PengeluaranNov[Kategori],RingkasanPengeluaran[Pengeluaran]) -> 0.00 | M5: =SUMIFS(PengeluaranDes[Jumlah],PengeluaranDes[Kategori],RingkasanPengeluaran[Pengeluaran]) -> 201,000.00 | N5: =SUM(RingkasanPengeluaran[[#This Row],[Jan]:[Des]]) -> 1,263,000.00
A6: Pengeluaran 2 | B6: =SUMIFS(PengeluaranJan[Jumlah],PengeluaranJan[Kategori],RingkasanPengeluaran[Pengeluaran]) -> 238,000.00 | C6: =SUMIFS(PengeluaranFeb[Jumlah],PengeluaranFeb[Kategori],RingkasanPengeluaran[Pengeluaran]) -> 238,000.00 | D6: =SUMIFS(PengeluaranMar[Jumlah],PengeluaranMar[Kategori],RingkasanPengeluaran[Pengeluaran]) -> 238,000.00 | E6: =SUMIFS(PengeluaranApr[Jumlah],PengeluaranApr[Kategori],RingkasanPengeluaran[Pengeluaran]) -> 123,000.00 | F6: =SUMIFS(PengeluaranMei[Jumlah],PengeluaranMei[Kategori],RingkasanPengeluaran[Pengeluaran]) -> 111,000.00 | G6: =SUMIFS(PengeluaranJun[Jumlah],PengeluaranJun[Kategori],RingkasanPengeluaran[Pengeluaran]) -> 98,000.00 | H6: =SUMIFS(PengeluaranJul[Jumlah],PengeluaranJul[Kategori],RingkasanPengeluaran[Pengeluaran]) -> 0.00 | I6: =SUMIFS(PengeluaranAgs[Jumlah],PengeluaranAgs[Kategori],RingkasanPengeluaran[Pengeluaran]) -> 0.00 | J6: =SUMIFS(PengeluaranSep[Jumlah],PengeluaranSep[Kategori],RingkasanPengeluaran[Pengeluaran]) -> 0.00 | K6: =SUMIFS(PengeluaranOkt[Jumlah],PengeluaranOkt[Kategori],RingkasanPengeluaran[Pengeluaran]) -> 0.00 | L6: =SUMIFS(PengeluaranNov[Jumlah],PengeluaranNov[Kategori],RingkasanPengeluaran[Pengeluaran]) -> 0.00 | M6: =SUMIFS(PengeluaranDes[Jumlah],PengeluaranDes[Kategori],RingkasanPengeluaran[Pengeluaran]) -> 440,000.00 | N6: =SUM(RingkasanPengeluaran[[#This Row],[Jan]:[Des]]) -> 1,486,000.00
A7: Pengeluaran 3 | B7: =SUMIFS(PengeluaranJan[Jumlah],PengeluaranJan[Kategori],RingkasanPengeluaran[Pengeluaran]) -> 110,000.00 | C7: =SUMIFS(PengeluaranFeb[Jumlah],PengeluaranFeb[Kategori],RingkasanPengeluaran[Pengeluaran]) -> 110,000.00 | D7: =SUMIFS(PengeluaranMar[Jumlah],PengeluaranMar[Kategori],RingkasanPengeluaran[Pengeluaran]) -> 110,000.00 | E7: =SUMIFS(PengeluaranApr[Jumlah],PengeluaranApr[Kategori],RingkasanPengeluaran[Pengeluaran]) -> 125,000.00 | F7: =SUMIFS(PengeluaranMei[Jumlah],PengeluaranMei[Kategori],RingkasanPengeluaran[Pengeluaran]) -> 333,000.00 | G7: =SUMIFS(PengeluaranJun[Jumlah],PengeluaranJun[Kategori],RingkasanPengeluaran[Pengeluaran]) -> 122,000.00 | H7: =SUMIFS(PengeluaranJul[Jumlah],PengeluaranJul[Kategori],RingkasanPengeluaran[Pengeluaran]) -> 0.00 | I7: =SUMIFS(PengeluaranAgs[Jumlah],PengeluaranAgs[Kategori],RingkasanPengeluaran[Pengeluaran]) -> 0.00 | J7: =SUMIFS(PengeluaranSep[Jumlah],PengeluaranSep[Kategori],RingkasanPengeluaran[Pengeluaran]) -> 0.00 | K7: =SUMIFS(PengeluaranOkt[Jumlah],PengeluaranOkt[Kategori],RingkasanPengeluaran[Pengeluaran]) -> 0.00 | L7: =SUMIFS(PengeluaranNov[Jumlah],PengeluaranNov[Kategori],RingkasanPengeluaran[Pengeluaran]) -> 0.00 | M7: =SUMIFS(PengeluaranDes[Jumlah],PengeluaranDes[Kategori],RingkasanPengeluaran[Pengeluaran]) -> 12,200.00 | N7: =SUM(RingkasanPengeluaran[[#This Row],[Jan]:[Des]]) -> 922,200.00
A8: Pengeluaran 4 | B8: =SUMIFS(PengeluaranJan[Jumlah],PengeluaranJan[Kategori],RingkasanPengeluaran[Pengeluaran]) -> 426,000.00 | C8: =SUMIFS(PengeluaranFeb[Jumlah],PengeluaranFeb[Kategori],RingkasanPengeluaran[Pengeluaran]) -> 84,000.00 | D8: =SUMIFS(PengeluaranMar[Jumlah],PengeluaranMar[Kategori],RingkasanPengeluaran[Pengeluaran]) -> 84,000.00 | E8: =SUMIFS(PengeluaranApr[Jumlah],PengeluaranApr[Kategori],RingkasanPengeluaran[Pengeluaran]) -> 426,000.00 | F8: =SUMIFS(PengeluaranMei[Jumlah],PengeluaranMei[Kategori],RingkasanPengeluaran[Pengeluaran]) -> 125,000.00 | G8: =SUMIFS(PengeluaranJun[Jumlah],PengeluaranJun[Kategori],RingkasanPengeluaran[Pengeluaran]) -> 187,000.00 | H8: =SUMIFS(PengeluaranJul[Jumlah],PengeluaranJul[Kategori],RingkasanPengeluaran[Pengeluaran]) -> 0.00 | I8: =SUMIFS(PengeluaranAgs[Jumlah],PengeluaranAgs[Kategori],RingkasanPengeluaran[Pengeluaran]) -> 0.00 | J8: =SUMIFS(PengeluaranSep[Jumlah],PengeluaranSep[Kategori],RingkasanPengeluaran[Pengeluaran]) -> 0.00 | K8: =SUMIFS(PengeluaranOkt[Jumlah],PengeluaranOkt[Kategori],RingkasanPengeluaran[Pengeluaran]) -> 0.00 | L8: =SUMIFS(PengeluaranNov[Jumlah],PengeluaranNov[Kategori],RingkasanPengeluaran[Pengeluaran]) -> 0.00 | M8: =SUMIFS(PengeluaranDes[Jumlah],PengeluaranDes[Kategori],RingkasanPengeluaran[Pengeluaran]) -> 18,700.00 | N8: =SUM(RingkasanPengeluaran[[#This Row],[Jan]:[Des]]) -> 1,350,700.00
A9: Pengeluaran 5 | B9: =SUMIFS(PengeluaranJan[Jumlah],PengeluaranJan[Kategori],RingkasanPengeluaran[Pengeluaran]) -> 54,000.00 | C9: =SUMIFS(PengeluaranFeb[Jumlah],PengeluaranFeb[Kategori],RingkasanPengeluaran[Pengeluaran]) -> 54,000.00 | D9: =SUMIFS(PengeluaranMar[Jumlah],PengeluaranMar[Kategori],RingkasanPengeluaran[Pengeluaran]) -> 109,000.00 | E9: =SUMIFS(PengeluaranApr[Jumlah],PengeluaranApr[Kategori],RingkasanPengeluaran[Pengeluaran]) -> 98,000.00 | F9: =SUMIFS(PengeluaranMei[Jumlah],PengeluaranMei[Kategori],RingkasanPengeluaran[Pengeluaran]) -> 33,000.00 | G9: =SUMIFS(PengeluaranJun[Jumlah],PengeluaranJun[Kategori],RingkasanPengeluaran[Pengeluaran]) -> 441,000.00 | H9: =SUMIFS(PengeluaranJul[Jumlah],PengeluaranJul[Kategori],RingkasanPengeluaran[Pengeluaran]) -> 0.00 | I9: =SUMIFS(PengeluaranAgs[Jumlah],PengeluaranAgs[Kategori],RingkasanPengeluaran[Pengeluaran]) -> 0.00 | J9: =SUMIFS(PengeluaranSep[Jumlah],PengeluaranSep[Kategori],RingkasanPengeluaran[Pengeluaran]) -> 0.00 | K9: =SUMIFS(PengeluaranOkt[Jumlah],PengeluaranOkt[Kategori],RingkasanPengeluaran[Pengeluaran]) -> 0.00 | L9: =SUMIFS(PengeluaranNov[Jumlah],PengeluaranNov[Kategori],RingkasanPengeluaran[Pengeluaran]) -> 0.00 | M9: =SUMIFS(PengeluaranDes[Jumlah],PengeluaranDes[Kategori],RingkasanPengeluaran[Pengeluaran]) -> 9,900.00 | N9: =SUM(RingkasanPengeluaran[[#This Row],[Jan]:[Des]]) -> 798,900.00
A10: Total | B10: =SUBTOTAL(109,RingkasanPengeluaran[Jan]) -> 861,000.00 | C10: =SUBTOTAL(109,RingkasanPengeluaran[Feb]) -> 861,000.00 | D10: =SUBTOTAL(109,RingkasanPengeluaran[Mar]) -> 574,000.00 | E10: =SUBTOTAL(109,RingkasanPengeluaran[Apr]) -> 817,000.00 | F10: =SUBTOTAL(109,RingkasanPengeluaran[Mei]) -> 977,000.00 | G10: =SUBTOTAL(109,RingkasanPengeluaran[Jun]) -> 1,049,000.00 | H10: =SUBTOTAL(109,RingkasanPengeluaran[Jul]) -> 0.00 | I10: =SUBTOTAL(109,RingkasanPengeluaran[Ags]) -> 0.00 | J10: =SUBTOTAL(109,RingkasanPengeluaran[Sep]) -> 0.00 | K10: =SUBTOTAL(109,RingkasanPengeluaran[Okt]) -> 0.00 | L10: =SUBTOTAL(109,RingkasanPengeluaran[Nov]) -> 0.00 | M10: =SUBTOTAL(109,RingkasanPengeluaran[Des]) -> 681,800.00 | N10: =SUBTOTAL(109,RingkasanPengeluaran[Total]) -> 5,820,800.00

Sheet jan
A1: PENGELUARAN JANUARI | D1: Ringkasan | E1: Tips
A2: Tanggal | B2: PO# | C2: Jumlah | D2: Kategori | E2: Deskripsi
A3: =DATE(YEAR(TODAY()),1,4) -> 2017-01-04 | B3: A-12345 | C3: 33,000.00 | D3: Pengeluaran 1 | E3: Persediaan
A4: =DATE(YEAR(TODAY()),1,5) -> 2017-01-05 | B4: A-12346 | C4: 238,000.00 | D4: Pengeluaran 2
C5: 342,000.00 | D5: Pengeluaran 4
C6: 110,000.00 | D6: Pengeluaran 3
C7: 84,000.00 | D7: Pengeluaran 4
C8: 54,000.00 | D8: Pengeluaran 5
A9: Total | C9: =SUBTOTAL(109,PengeluaranJan[Jumlah]) -> 861,000.00

Sheet feb
A1: PENGELUARAN FEBRUARI | D1: Ringkasan | E1: Tips
A2: Tanggal | B2: PO# | C2: Jumlah | D2: Kategori | E2: Deskripsi
A3: =DATE(YEAR(TODAY()),2,3) -> 2017-02-03 | B3: A-12345 | C3: 33,000.00 | D3: Pengeluaran 1 | E3: Persediaan
A4: =DATE(YEAR(TODAY()),2,4) -> 2017-02-04 | B4: A-12346 | C4: 238,000.00 | D4: Pengeluaran 2
C5: 342,000.00 | D5: Pengeluaran 1
C6: 110,000.00 | D6: Pengeluaran 3
C7: 84,000.00 | D7: Pengeluaran 4
C8: 54,000.00 | D8: Pengeluaran 5
A9: Total | C9: =SUBTOTAL(109,PengeluaranFeb[Jumlah]) -> 861,000.00

Sheet mar
A1: PENGELUARAN MARET | D1: Ringkasan | E1: Tips
A2: Tanggal | B2: PO# | C2: Jumlah | D2: Kategori | E2: Deskripsi
A3: =DATE(YEAR(TODAY()),3,5) -> 2017-03-05 | B3: A-12345 | C3: 33,000.00 | D3: Pengeluaran 1 | E3: Persediaan
A4: =DATE(YEAR(TODAY()),3,6) -> 2017-03-06 | B4: A-12346 | C4: 238,000.00 | D4: Pengeluaran 2
C5: 55,000.00 | D5: Pengeluaran 5
C6: 110,000.00 | D6: Pengeluaran 3
C7: 84,000.00 | D7: Pengeluaran 4
C8: 54,000.00 | D8: Pengeluaran 5
A9: Total | C9: =SUBTOTAL(109,PengeluaranMar[Jumlah]) -> 574,000.00

Sheet apr
A1: PENGELUARAN APRIL | D1: Ringkasan | E1: Tips
A2: Tanggal | B2: PO# | C2: Jumlah | D2: Kategori | E2: Deskripsi
A3: =DATE(YEAR(TODAY()),4,4) -> 2017-04-04 | B3: A-12345 | C3: 45,000.00 | D3: Pengeluaran 1 | E3: Persediaan
A4: =DATE(YEAR(TODAY()),4,8) -> 2017-04-08 | B4: A-12346 | C4: 123,000.00 | D4: Pengeluaran 2
C5: 342,000.00 | D5: Pengeluaran 4
C6: 125,000.00 | D6: Pengeluaran 3
C7: 84,000.00 | D7: Pengeluaran 4
C8: 98,000.00 | D8: Pengeluaran 5
A9: Total | C9: =SUBTOTAL(109,PengeluaranApr[Jumlah]) -> 817,000.00

Sheet mei
A1: PENGELUARAN MEI | D1: Ringkasan | E1: Tips
A2: Tanggal | B2: PO# | C2: Jumlah | D2: Kategori | E2: Deskripsi
A3: =DATE(YEAR(TODAY()),5,3) -> 2017-05-03 | B3: A-12345 | C3: 33,000.00 | D3: Pengeluaran 1 | E3: Persediaan
A4: =DATE(YEAR(TODAY()),5,8) -> 2017-05-08 | B4: A-12346 | C4: 111,000.00 | D4: Pengeluaran 2
C5: 342,000.00 | D5: Pengeluaran 1
C6: 333,000.00 | D6: Pengeluaran 3
C7: 125,000.00 | D7: Pengeluaran 4
C8: 33,000.00 | D8: Pengeluaran 5
A9: Total | C9: =SUBTOTAL(109,PengeluaranMei[Jumlah]) -> 977,000.00

Sheet jun
A1: PENGELUARAN JUNI | D1: Ringkasan | E1: Tips
A2: Tanggal | B2: PO# | C2: Jumlah | D2: Kategori | E2: Deskripsi
A3: =DATE(YEAR(TODAY()),6,7) -> 2017-06-07 | B3: A-12345 | C3: 201,000.00 | D3: Pengeluaran 1 | E3: Persediaan
A4: =DATE(YEAR(TODAY()),6,8) -> 2017-06-08 | B4: A-12346 | C4: 98,000.00 | D4: Pengeluaran 2
C5: 342,000.00 | D5: Pengeluaran 5
C6: 122,000.00 | D6: Pengeluaran 3
C7: 187,000.00 | D7: Pengeluaran 4
C8: 99,000.00 | D8: Pengeluaran 5
A9: Total | C9: =SUBTOTAL(109,PengeluaranJun[Jumlah]) -> 1,049,000.00

Sheet jul
A1: PENGELUARAN JULI | D1: Ringkasan | E1: Tips
A2: Tanggal | B2: PO# | C2: Jumlah | D2: Kategori | E2: Deskripsi
A3: =DATE(YEAR(TODAY()),7,9) -> 2017-07-09 | B3: A-12345 | D3: Pengeluaran 1 | E3: Persediaan
A4: =DATE(YEAR(TODAY()),7,14) -> 2017-07-14 | B4: A-12346 | D4: Pengeluaran 2
D5: Pengeluaran 2
D6: Pengeluaran 3
D7: Pengeluaran 4
D8: Pengeluaran 5
A9: Total | C9: =SUBTOTAL(109,PengeluaranJul[Jumlah]) -> 0.00

Sheet ags
A1: PENGELUARAN AGUSTUS | D1: Ringkasan | E1: Tips
A2: Tanggal | B2: PO# | C2: Jumlah | D2: Kategori | E2: Deskripsi
A3: =DATE(YEAR(TODAY()),8,8) -> 2017-08-08 | B3: A-12345 | D3: Pengeluaran 1 | E3: Persediaan
A4: =DATE(YEAR(TODAY()),8,9) -> 2017-08-09 | B4: A-12346 | D4: Pengeluaran 2
D5: Pengeluaran 2
D6: Pengeluaran 3
D7: Pengeluaran 4
D8: Pengeluaran 5
A9: Total | C9: =SUBTOTAL(109,PengeluaranAgs[Jumlah]) -> 0.00

Sheet sep
A1: PENGELUARAN SEPTEMBER | D1: Ringkasan | E1: Tips
A2: Tanggal | B2: PO# | C2: Jumlah | D2: Kategori | E2: Deskripsi
A3: =DATE(YEAR(TODAY()),9,9) -> 2017-09-09 | B3: A-12345 | D3: Pengeluaran 1 | E3: Persediaan
A4: =DATE(YEAR(TODAY()),9,15) -> 2017-09-15 | B4: A-12346 | D4: Pengeluaran 2
D5: Pengeluaran 2
D6: Pengeluaran 3
D7: Pengeluaran 4
D8: Pengeluaran 5
A9: Total | C9: =SUBTOTAL(109,PengeluaranSep[Jumlah]) -> 0.00

Sheet okt
A1: PENGELUARAN OKTOBER | D1: Ringkasan | E1: Tips
A2: Tanggal | B2: PO# | C2: Jumlah | D2: Kategori | E2: Deskripsi
A3: =DATE(YEAR(TODAY()),10,10) -> 2017-10-10 | B3: A-12345 | D3: Pengeluaran 1 | E3: Persediaan
A4: =DATE(YEAR(TODAY()),10,21) -> 2017-10-21 | B4: A-12346 | D4: Pengeluaran 2
D5: Pengeluaran 2
D6: Pengeluaran 3
D7: Pengeluaran 4
D8: Pengeluaran 5
A9: Total | C9: =SUBTOTAL(109,PengeluaranOkt[Jumlah]) -> 0.00

Sheet nov
A1: PENGELUARAN NOVEMBER | D1: Ringkasan | E1: Tips
A2: Tanggal | B2: PO# | C2: Jumlah | D2: Kategori | E2: Deskripsi
A3: =DATE(YEAR(TODAY()),11,14) -> 2017-11-14 | B3: A-12345 | D3: Pengeluaran 1 | E3: Persediaan
A4: =DATE(YEAR(TODAY()),11,21) -> 2017-11-21 | B4: A-12346 | D4: Pengeluaran 2
D5: Pengeluaran 2
D6: Pengeluaran 3
D7: Pengeluaran 4
D8: Pengeluaran 5
A9: Total | C9: =SUBTOTAL(109,PengeluaranNov[Jumlah]) -> 0.00

Sheet des
A1: PENGELUARAN DESEMBER | D1: Ringkasan | E1: Tips
A2: Tanggal | B2: PO# | C2: Jumlah | D2: Kategori | E2: Deskripsi
A3: =DATE(YEAR(TODAY()),12,2) -> 2017-12-02 | B3: A-12345 | C3: 201,000.00 | D3: Pengeluaran 1 | E3: Persediaan
A4: =DATE(YEAR(TODAY()),12,24) -> 2017-12-24 | B4: A-12346 | C4: 98,000.00 | D4: Pengeluaran 2
C5: 342,000.00 | D5: Pengeluaran 2
C6: 12,200.00 | D6: Pengeluaran 3
C7: 18,700.00 | D7: Pengeluaran 4
C8: 9,900.00 | D8: Pengeluaran 5
A9: Total | C9: =SUBTOTAL(109,PengeluaranDes[Jumlah]) -> 681,800.00
